bitfinex/quotes_SOLUSD_20240811
["timestamp","ask_amount","ask_price","bid_price","bid_amount"]
[1723414668294,6.9793,143.28,143.23,6.9813]
[1723414668509,34.54,143.33,143.24,1.39515494]
[1723414668816,6.9774,143.32,143.25,16.3622]
[1723414668991,34.54,143.36,143.26,46.39496016]
[1723414669192,34.54,143.36,143.26,45.0]
[1723414669417,17.4408,143.35,143.26,45.0]
[1723414669727,17.4408,143.35,143.25,23.3426]
[1723414669728,6.9784,143.3,143.25,23.3426]
[1723414670018,6.9784,143.3,143.26,6.9802]
[1723414670399,6.9784,143.3,143.25,23.3429]
[1723414670607,6.9784,143.3,143.25,40.7935]
[1723414671004,6.9779,143.31,143.26,6.9801]
[1723414671503,34.54,143.33,143.25,16.3622]
[1723414671703,0.50196,143.32,143.25,16.3622]
[1723414672193,34.54,143.33,143.25,16.3622]
[1723414672390,34.54,143.36,143.26,17.4499]
[1723414672627,6.9782,143.31,143.26,24.4301]
[1723414672924,34.54,143.36,143.27,6.0158]
[1723414673297,6.9773,143.32,143.28,17.4474]
[1723414673497,34.54,143.36,143.28,17.4474]
[1723414673498,6.9768,143.34,143.28,17.4474]
[1723414673828,6.9768,143.34,143.29,6.9787]
[1723414674423,6.9764,143.34,143.29,6.9787]
[1723414674595,6.9769,143.33,143.29,6.9787]
[1723414675401,6.9764,143.34,143.29,6.9787]
[1723414675602,6.9759,143.35,143.28,17.4474]
[1723414675809,6.9759,143.35,143.3,6.9782]
[1723414676015,6.9765,143.34,143.29,6.9787]
[1723414676407,6.9759,143.35,143.3,6.9782]
[1723414676611,41.5144,143.39,143.33,6.9764]
[1723414676918,6.9759,143.35,143.3,6.9783]
[1723414677308,6.9754,143.36,143.31,6.9778]
[1723414677516,6.9759,143.35,143.29,17.4467]
[1723414678103,34.54,143.36,143.29,17.4467]
[1723414679014,6.9765,143.34,143.29,24.4251]
[1723414679320,6.9763,143.35,143.3,6.9783]
[1723414679629,6.9764,143.34,143.29,24.4254]
[1723414679833,34.54,143.33,143.27,6.0158]
[1723414680005,28.69,143.33,143.27,6.0158]
[1723414680603,6.9777,143.32,143.27,12.9955]
[1723414680803,28.69,143.35,143.27,6.0158]
[1723414681304,35.665,143.37,143.32,6.977]
[1723414681808,28.69,143.33,143.27,6.0158]
[1723414682006,6.9784,143.3,143.25,23.3426]
[1723414682225,28.69,143.29,143.25,23.3426]
[1723414682429,28.69,143.29,143.26,6.9802]
[1723414682729,28.69,143.27,143.2,32.5304]
[1723414682900,28.69,143.27,143.21,6.9826]
[1723414683099,28.69,143.27,143.2,32.5304]
[1723414683100,28.69,143.23,143.2,15.0735]
[1723414683502,28.69,143.25,143.21,6.9823]
[1723414683814,28.69,143.27,143.22,1.38779745]
[1723414684132,28.69,143.27,143.23,6.9816]
[1723414684422,28.69,143.25,143.2,32.5315]
[1723414684653,6.9795,143.28,143.2,32.5315]
[1723414684947,28.69,143.27,143.23,6.9816]
[1723414685113,28.69,143.31,143.26,6.9802]
[1723414685316,28.69,143.31,143.24,17.452]
[1723414685544,28.69,143.29,143.24,17.452]
[1723414686845,28.69,143.27,143.22,6.9822]
[1723414687421,28.69,143.29,143.23,17.4535]
[1723414687953,28.69,143.31,143.27,6.9798]
[1723414688265,35.6679,143.31,143.26,6.9802]
[1723414688645,6.9783,143.3,143.26,8.37528823]
[1723414688830,6.9783,143.3,143.25,24.4316]
[1723414689548,28.69,143.31,143.25,24.4313]
[1723414689922,28.69,143.31,143.25,17.4509]
[1723414690125,35.6673,143.33,143.28,6.9792]
[1723414690335,35.666,143.35,143.3,6.9779]
[1723414690530,28.69,143.35,143.26,0.12549]
[1723414690731,28.69,143.35,143.31,6.9778]
[1723414691254,28.69,143.35,143.29,6.9783]
[1723414691423,260.6,143.4,143.31,0.12549]
[1723414691628,28.69,143.39,143.35,6.9758]
[1723414691958,35.6639,143.39,143.34,6.9763]
[1723414692129,35.6639,143.39,143.35,1.39491222]
[1723414692327,28.69,143.41,143.36,1.39481491]
[1723414692544,28.69,143.41,143.34,6.9763]
[1723414692545,6.9735,143.4,143.34,6.9763]
[1723414692738,6.9741,143.39,143.34,6.9763]
[1723414692932,28.69,143.41,143.3,51.5969]
[1723414692933,6.976,143.35,143.3,51.5969]
[1723414693239,35.666,143.35,143.3,6.5969]
[1723414693445,28.69,143.35,143.3,6.5969]
[1723414693626,35.6663,143.35,143.3,6.5969]
[1723414693942,35.6663,143.35,143.29,15.0798]
[1723414693943,6.9778,143.31,143.29,15.0798]
[1723414694124,6.9778,143.31,143.25,23.4706]
[1723414694320,6.9774,143.32,143.25,23.4706]
[1723414694750,28.69,143.33,143.25,23.4706]
[1723414694931,28.69,143.33,143.29,6.9784]
[1723414695250,28.69,143.37,143.31,17.4446]
[1723414695441,28.69,143.37,143.32,1.39520987]
[1723414695622,28.69,143.37,143.31,17.4446]
[1723414696047,6.9772,143.33,143.28,24.4274]
[1723414696220,28.69,143.35,143.29,45.0]
[1723414696420,28.69,143.35,143.3,6.9779]
[1723414696639,35.6651,143.37,143.29,45.0]
[1723414696827,35.6651,143.37,143.3,0.12549]
[1723414697152,35.6669,143.33,143.27,24.4291]
[1723414697452,28.69,143.33,143.27,17.4494]
[1723414697667,28.69,143.35,143.3,6.9779]
[1723414697865,28.69,143.35,143.31,6.9777]
[1723414698025,28.69,143.39,143.34,6.9763]
[1723414698229,28.69,143.39,143.36,6.9754]
[1723414698534,28.69,143.41,143.37,7.52429787]
[1723414698847,28.69,143.41,143.34,16.2092]
[1723414698848,35.6631,143.41,143.36,6.9753]
[1723414699049,28.69,143.39,143.34,16.2092]
[1723414699830,35.663,143.41,143.36,6.9752]
[1723414700027,35.663,143.41,143.35,6.9759]
[1723414700028,6.9735,143.4,143.35,6.9759]
[1723414700350,28.69,143.39,143.34,23.1851]
[1723414700534,28.69,143.39,143.35,6.9758]
[1723414700924,35.663,143.41,143.36,6.9751]
[1723414701151,28.69,143.41,143.36,6.9751]
[1723414701353,35.664,143.39,143.34,16.2092]
[1723414701561,28.69,143.39,143.35,6.9758]
[1723414701850,28.69,143.37,143.26,28.69]
[1723414702050,17.4314,143.42,143.31,6.9774]
[1723414702051,28.69,143.35,143.31,6.9774]
[1723414702255,28.69,143.35,143.29,15.1222]
[1723414702446,28.69,143.37,143.33,6.9769]
[1723414703457,28.69,143.37,143.33,6.9768]
[1723414703832,28.69,143.37,143.34,6.9763]
[1723414704163,28.69,143.37,143.33,6.9769]
[1723414704359,35.665,143.37,143.32,24.4198]
[1723414705141,28.69,143.37,143.33,6.9768]
[1723414705761,28.69,143.37,143.32,17.4425]
[1723414705931,28.69,143.37,143.3,0.12549]
[1723414706132,17.4347,143.4,143.3,51.9782]
[1723414706133,35.6663,143.35,143.3,51.9782]
[1723414706362,28.69,143.37,143.33,6.9765]
[1723414706657,0.12549,143.39,143.34,17.4402]
[1723414706658,28.69,143.39,143.34,17.4402]
[1723414706866,17.4304,143.43,143.35,6.9759]
[1723414706867,28.69,143.41,143.35,6.9759]
[1723414707156,35.6641,143.39,143.34,24.4165]
[1723414707465,28.69,143.37,143.3,17.4448]
[1723414707752,35.6653,143.37,143.32,6.9773]
[1723414708454,28.69,143.33,143.29,15.1222]
[1723414708964,28.69,143.31,143.25,21.2057]
[1723414709149,28.69,143.29,143.25,15.1869]
[1723414709740,28.69,143.31,143.26,17.4495]
[1723414709945,35.6678,143.31,143.26,17.4495]
[1723414710243,35.6678,143.31,143.22,6.9819]
[1723414710244,28.69,143.27,143.22,6.9819]
[1723414710439,28.69,143.27,143.24,6.9812]
[1723414710639,28.69,143.27,143.21,22.6637]
[1723414710640,28.69,143.29,143.25,6.9807]
[1723414711454,28.69,143.29,143.26,6.9802]
[1723414711771,28.69,143.29,143.25,6.9807]
[1723414712267,28.69,143.31,143.26,6.9803]
[1723414712635,63.66713884,143.37,143.28,6.9792]
[1723414712636,28.69,143.33,143.28,6.9792]
[1723414712835,28.69,143.33,143.24,0.12549]
[1723414713070,28.69,143.33,143.28,6.9789]
[1723414713238,28.69,143.35,143.29,45.0]
[1723414713438,35.6659,143.35,143.3,6.9779]
[1723414713657,28.69,143.33,143.28,24.4264]
[1723414713856,28.69,143.31,143.25,0.12549]
[1723414714054,28.69,143.31,143.25,45.0]
[1723414714464,28.69,143.31,143.27,6.9794]
[1723414714648,28.69,143.36,143.27,6.9794]
[1723414714649,28.69,143.33,143.27,6.9794]
[1723414714849,28.69,143.31,143.26,24.43]
[1723414715058,28.69,143.31,143.27,6.9796]
[1723414715368,35.6679,143.31,143.26,24.43]
[1723414715546,35.6679,143.31,143.23,17.4542]
[1723414715547,6.9785,143.3,143.23,17.4542]
[1723414715741,28.69,143.29,143.25,6.9805]
[1723414715967,28.69,143.36,143.22,0.25098]
[1723414715968,28.69,143.31,143.22,0.25098]
[1723414716152,28.69,143.33,143.22,20.25098]
[1723414716467,35.6669,143.33,143.28,6.9793]
[1723414716661,6.975,143.37,143.32,6.9773]
[1723414716866,28.69,143.4,143.3,6.17119]
[1723414717169,6.9731,143.41,143.35,6.9759]
[1723414717347,28.69,143.4,143.36,6.9753]
[1723414717544,28.69,143.4,143.37,1.39481025]
[1723414717762,35.6635,143.4,143.34,24.4161]
[1723414718071,35.6627,143.42,143.35,1.39319841]
[1723414718241,35.6627,143.42,143.36,1.39481032]
[1723414718666,6.974,143.39,143.34,24.4159]
[1723414718850,35.6635,143.4,143.35,6.9757]
[1723414719054,35.6635,143.4,143.34,24.4163]
[1723414719253,28.69,143.4,143.35,6.9758]
[1723414719478,28.69,143.38,143.34,17.44]
[1723414719967,28.69,143.38,143.35,6.9758]
[1723414720270,28.69,143.36,143.31,6.9778]
[1723414720577,28.69,143.36,143.3,13.14909]
[1723414720750,28.69,143.36,143.31,6.9776]
[1723414721071,28.69,143.36,143.3,6.17119]
[1723414721269,28.69,143.36,143.33,6.9768]
[1723414722153,28.69,143.36,143.3,17.4447]
[1723414722365,28.69,143.36,143.32,6.9773]
[1723414722872,28.69,143.36,143.31,6.9778]
[1723414723077,35.6664,143.34,143.29,15.2051]
[1723414723365,28.69,143.34,143.29,6.9788]
[1723414723774,28.69,143.34,143.28,6.9791]
[1723414723963,28.69,143.34,143.27,17.4494]
[1723414724147,28.69,143.32,143.27,17.4494]
[1723414724348,28.69,143.32,143.27,24.4291]
[1723414724565,28.69,143.34,143.29,6.9785]
[1723414724768,28.69,143.32,143.27,17.4494]
[1723414724967,28.69,143.32,143.27,24.4288]
[1723414725280,28.69,143.34,143.29,6.9788]
[1723414725787,35.6654,143.36,143.29,17.446]
[1723414725957,6.6036,143.38,143.32,6.9773]
[1723414725958,35.6649,143.38,143.32,6.9773]
[1723414726165,28.69,143.38,143.34,6.9764]
[1723414726393,28.69,143.43,143.35,1.39506572]
[1723414726678,6.974,143.39,143.34,22.3131]
[1723414727056,6.9735,143.4,143.35,6.9758]
[1723414728294,6.9739,143.39,143.34,22.3131]
[1723414728581,35.663,143.41,143.36,6.9753]
[1723414729169,6.9735,143.4,143.35,6.9758]
[1723414729877,28.81549,143.39,143.3,17.4455]
[1723414730075,6.977,143.33,143.29,21.2821]
[1723414730385,35.666,143.35,143.3,6.9783]
[1723414730689,6.9764,143.34,143.29,22.1788]
[1723414730892,28.69,143.35,143.3,17.4457]
[1723414731063,28.69,143.35,143.31,6.9777]
[1723414731459,28.69,143.37,143.32,6.9769]
[1723414732080,6.9756,143.36,143.3,24.4236]
[1723414732266,28.69,143.37,143.3,17.4457]
[1723414732587,35.6652,143.37,143.32,6.9773]
[1723414732768,35.6652,143.37,143.3,17.4457]
[1723414732958,6.9752,143.37,143.3,17.4457]
[1723414733154,6.9744,143.38,143.34,6.9764]
[1723414733579,35.6641,143.39,143.34,6.9764]
[1723414733773,6.9735,143.4,143.35,6.9759]
[1723414734488,6.9735,143.4,143.36,1.25096613]
[1723414734688,7.23593235,143.44,143.4,6.9734]
[1723414734856,35.6614,143.45,143.41,1.28038621]
[1723414735061,35.6614,143.45,143.36,45.12549]
[1723414735062,6.972,143.43,143.39,6.9738]
[1723414735271,6.972,143.43,143.36,46.40620464]
[1723414735474,6.972,143.43,143.38,6.9742]
[1723414735763,35.6614,143.45,143.39,6.9739]
[1723414736489,28.69,143.45,143.38,17.4353]
[1723414736873,6.9716,143.44,143.39,6.9739]
[1723414737063,6.9716,143.44,143.39,8.25416805]
[1723414738090,28.69,143.45,143.36,45.12549]
[1723414738091,28.69,143.45,143.4,18.71307877]
[1723414738388,28.69,143.47,143.4,18.71307877]
[1723414739091,6.971,143.45,143.41,6.9726]
[1723414739872,6.9706,143.46,143.41,8.36701601]
[1723414740176,6.9712,143.45,143.4,24.4062]
[1723414740988,35.6612,143.45,143.4,24.4062]
[1723414742289,6.9726,143.42,143.37,40.1213]
[1723414742468,6.9737,143.4,143.37,15.7097]
[1723414742971,28.69,143.41,143.37,22.6842]
[1723414743307,35.6621,143.43,143.38,6.974]
[1723414743466,35.6621,143.43,143.37,15.7097]
[1723414743467,6.9716,143.44,143.37,15.7097]
[1723414743670,6.9723,143.43,143.38,6.9744]
[1723414743874,6.9723,143.43,143.39,6.9738]
[1723414744279,28.69,143.43,143.37,15.7097]
[1723414744808,28.69,143.45,143.39,6.9736]
[1723414745097,28.69,143.45,143.4,6.9734]
[1723414745388,6.9711,143.45,143.4,6.9734]
[1723414745774,6.971,143.46,143.41,6.9728]
[1723414747676,6.9711,143.45,143.41,6.9728]
[1723414748180,28.69,143.47,143.39,17.4342]
[1723414748378,6.9692,143.49,143.44,6.9715]
[1723414748588,28.69,143.48,143.41,6.5502]
[1723414748768,28.69,143.46,143.41,6.5502]
[1723414748975,28.69,143.46,143.38,45.0]
[1723414749196,28.69,143.46,143.37,22.2599]
[1723414749197,28.69,143.42,143.37,22.2599]
[1723414749497,28.69,143.38,143.33,21.3205]
[1723414749673,6.9754,143.36,143.33,15.0882]
[1723414749997,28.69,143.34,143.28,17.4483]
[1723414750201,6.9769,143.33,143.28,24.4274]
[1723414750775,28.69,143.36,143.3,17.4448]
[1723414751080,35.6655,143.36,143.31,6.9778]
[1723414751378,35.6649,143.38,143.32,6.9773]
[1723414751587,57.3315,143.45,143.28,28.69]
[1723414751588,22.4752,143.45,143.28,28.69]
[1723414751780,28.69,143.4,143.35,6.9758]
[1723414752126,35.6625,143.42,143.36,6.9751]
[1723414752606,28.69,143.4,143.35,1.39483375]
[1723414752809,28.69,143.36,143.3,6.9779]
[1723414752972,35.6654,143.36,143.3,6.9779]
[1723414753178,28.69,143.38,143.31,17.4435]
[1723414753513,28.69,143.38,143.34,6.9759]
[1723414753673,28.69,143.38,143.33,6.9768]
[1723414753877,28.69,143.4,143.33,17.4411]
[1723414754078,28.69,143.42,143.34,0.37078875]
[1723414754273,28.69,143.42,143.34,45.37078875]
[1723414754479,35.6625,143.42,143.36,6.9754]
[1723414754698,6.9731,143.41,143.36,6.9754]
[1723414754908,28.69,143.4,143.33,17.4411]
[1723414755112,28.69,143.36,143.3,17.4457]
[1723414755314,35.6654,143.36,143.3,17.4457]
[1723414755605,28.69,143.38,143.3,17.4457]
[1723414755778,28.69,143.36,143.3,17.4457]
[1723414755980,28.69,143.36,143.27,17.4495]
[1723414756175,28.69,143.34,143.29,22.5523]
[1723414756405,6.9763,143.35,143.3,6.978]
[1723414756587,28.69,143.36,143.31,6.9778]
[1723414756790,35.6645,143.38,143.32,1.39530544]
[1723414757096,6.9755,143.36,143.32,17.4432]
[1723414757293,35.6655,143.36,143.32,17.4432]
[1723414757610,6.9755,143.36,143.32,17.4432]
[1723414757812,6.9764,143.34,143.29,15.5735]
[1723414758004,6.9764,143.34,143.29,22.5522]
[1723414758326,6.9759,143.35,143.3,6.9782]
[1723414758691,28.69,143.38,143.32,17.4429]
[1723414758890,6.973,143.41,143.36,6.9753]
[1723414759114,6.9735,143.4,143.35,6.9758]
[1723414759984,6.9735,143.4,143.35,24.4154]
[1723414760181,42.33698338,143.45,143.4,6.9734]
[1723414760182,28.69,143.44,143.4,6.9734]
[1723414760481,28.69,143.46,143.39,0.12549]
[1723414761108,28.69,143.44,143.38,45.0]
[1723414761308,28.69,143.44,143.37,15.0933]
[1723414761309,35.6619,143.44,143.39,6.9739]
[1723414761808,6.972,143.43,143.38,24.4104]
[1723414762011,6.972,143.43,143.38,17.4361]
[1723414762306,28.69,143.42,143.37,15.0933]
[1723414762616,28.69,143.4,143.37,15.0933]
[1723414762794,28.69,143.4,143.34,6.3317]
[1723414762987,28.69,143.38,143.33,15.8978]
[1723414763294,28.69,143.36,143.33,22.8747]
[1723414763485,21.83283597,143.48,143.34,1.39513082]
[1723414763681,28.69,143.4,143.33,33.3398]
[1723414764287,35.6636,143.4,143.35,6.9755]
[1723414764591,28.69,143.4,143.36,6.9753]
[1723414764915,35.6636,143.4,143.35,6.9758]
[1723414765409,28.69,143.4,143.33,33.3398]
[1723414766084,28.69,143.4,143.34,6.9763]
[1723414766785,28.69,143.4,143.33,15.8978]
[1723414766990,28.69,143.42,143.35,17.4391]
[1723414767189,6.9721,143.43,143.38,6.9744]
[1723414767490,28.69,143.44,143.39,1.39459937]
[1723414767687,35.6615,143.44,143.39,8.36839937]
[1723414767911,28.69,143.44,143.37,17.4366]
[1723414768102,28.69,143.42,143.35,0.12549]
[1723414768303,6.9735,143.4,143.35,6.9758]
[1723414768502,6.9735,143.4,143.36,6.9754]
[1723414768705,28.69,143.42,143.34,62.4406]
[1723414769090,6.9743,143.39,143.34,24.4169]
[1723414769295,6.9745,143.38,143.34,24.4169]
[1723414769504,28.69,143.4,143.34,24.4169]
[1723414769817,28.69,143.4,143.35,6.9759]
[1723414770114,28.69,143.42,143.34,24.4165]
[1723414770500,28.69,143.4,143.33,15.8978]
[1723414770705,6.9745,143.38,143.33,22.8745]
[1723414770901,28.69,143.36,143.3,6.0993]
[1723414771109,28.69,143.36,143.31,0.65887037]
[1723414771294,28.69,143.36,143.3,17.4447]
[1723414771490,7.28433219,143.4,143.33,24.4189]
[1723414771491,35.6645,143.38,143.33,24.4189]
[1723414771917,28.69,143.38,143.3,17.4455]
[1723414772123,6.9766,143.34,143.3,17.4455]
[1723414772420,28.69,143.36,143.31,6.9778]
[1723414773027,28.69,143.36,143.3,17.4455]
[1723414773714,6.9753,143.37,143.32,6.9771]
[1723414774499,6.9754,143.36,143.31,6.9778]
[1723414775722,28.69,143.36,143.3,17.4455]
[1723414776016,28.69,143.36,143.3,24.4234]
[1723414776411,6.9764,143.34,143.3,17.4455]
[1723414777620,28.69,143.34,143.28,15.4192]
[1723414777797,28.69,143.32,143.26,6.9801]
[1723414777998,28.69,143.34,143.27,1.39565811]
[1723414778224,28.69,143.34,143.24,45.1898]
[1723414778429,28.69,143.34,143.24,46.58544395]
[1723414778735,6.9769,143.33,143.28,6.9792]
[1723414779528,6.9769,143.33,143.24,46.58544395]
[1723414779529,6.9771,143.33,143.27,6.9794]
[1723414780024,6.9794,143.28,143.24,16.4998]
[1723414780432,6.9794,143.28,143.19,28.69]
[1723414780433,6.9799,143.27,143.22,6.982]
[1723414780720,6.9799,143.27,143.19,22.6176]
[1723414780721,28.69,143.28,143.21,17.4559]
[1723414781798,35.6707,143.26,143.21,17.4559]
[1723414782435,6.9809,143.25,143.2,6.9828]
[1723414782797,7.28794243,143.31,143.19,22.6176]
[1723414783020,6.9788,143.29,143.25,6.9806]
[1723414783349,28.69,143.3,143.26,6.9802]
[1723414783700,6.9794,143.28,143.24,17.453]
[1723414784407,6.9794,143.28,143.24,24.4342]
[1723414784720,6.9789,143.29,143.24,24.4342]
[1723414784925,35.6684,143.3,143.25,6.9807]
[1723414785422,28.69,143.3,143.24,17.453]
[1723414786302,28.69,143.32,143.26,17.4495]
[1723414786523,11.47580702,143.33,143.26,17.4495]
[1723414786827,6.9774,143.32,143.28,6.9793]
[1723414787020,18.45270702,143.33,143.28,6.9793]
[1723414787211,6.9769,143.33,143.28,6.9793]
[1723414787411,28.69,143.34,143.24,1.39579764]
[1723414787720,6.9794,143.28,143.23,24.4359]
[1723414788438,6.9799,143.27,143.23,17.4542]
[1723414788731,6.9799,143.27,143.23,24.4359]
[1723414788908,6.9794,143.28,143.23,24.4359]
[1723414789222,6.9789,143.29,143.24,6.9812]
[1723414789432,6.9794,143.28,143.23,24.4359]
[1723414790210,28.69,143.3,143.19,51.3076]
[1723414790516,6.9808,143.25,143.2,6.9828]
[1723414790710,6.9804,143.26,143.19,22.6176]
[1723414790910,6.9804,143.26,143.21,6.9826]
[1723414791111,6.981,143.25,143.19,22.6176]
[1723414791313,6.981,143.25,143.2,6.983]
[1723414792435,6.981,143.25,143.2,24.4406]
[1723414792948,28.69,143.31,143.26,6.9798]
[1723414793237,6.9788,143.29,143.24,17.4524]
[1723414793406,28.69,143.31,143.24,17.4524]
[1723414793612,6.9783,143.3,143.26,6.9802]
[1723414794042,6.9783,143.3,143.25,6.9806]
[1723414794614,6.9778,143.31,143.26,6.9803]
[1723414794935,6.9774,143.32,143.27,6.9798]
[1723414796012,6.9769,143.33,143.28,6.9792]
[1723414797236,6.9756,143.36,143.27,50.7502]
[1723414797426,6.9756,143.36,143.31,17.4444]
[1723414799133,6.976,143.35,143.31,17.4444]
[1723414799333,28.69,143.35,143.27,22.0602]
[1723414799518,6.9769,143.33,143.27,29.0396]
[1723414799848,6.9774,143.32,143.27,22.0602]
[1723414800215,6.9774,143.32,143.27,29.04]
[1723414800539,0.12549,143.34,143.27,22.0602]
[1723414800746,6.9786,143.3,143.23,39.4373]
[1723414800940,6.9799,143.27,143.23,39.4373]
[1723414801127,28.81549,143.31,143.23,39.4373]
[1723414801329,7.10109,143.36,143.31,6.9777]
[1723414801530,7.10109,143.36,143.28,1.39381571]
[1723414801531,0.25098,143.35,143.28,1.39381571]
[1723414801732,0.12549,143.34,143.26,6.9798]
[1723414802030,6.9774,143.32,143.27,6.9797]
[1723414802216,7.10219,143.34,143.27,17.4493]
[1723414802425,35.97758343,143.37,143.28,0.77369391]
[1723414802730,6.9786,143.3,143.25,6.9806]
[1723414802922,28.69,143.36,143.26,17.4504]
[1723414803124,6.9765,143.34,143.26,17.4504]
[1723414803322,7.2839339,143.37,143.29,28.69]
[1723414803547,4.81000582,143.44,143.29,28.69]
[1723414803548,43.18350669,143.46,143.36,6.9754]
[1723414803851,43.18350669,143.46,143.33,6.2741]
[1723414803852,35.97275178,143.43,143.34,6.9759]
[1723414804043,35.97275178,143.43,143.33,6.2741]
[1723414804044,6.9735,143.4,143.35,6.9758]
[1723414804227,28.69,143.45,143.36,1.30371595]
[1723414804749,28.69,143.43,143.35,17.4394]
[1723414804926,28.69,143.43,143.33,6.2741]
[1723414804927,28.69,143.39,143.33,13.2508]
[1723414805132,6.9759,143.35,143.31,17.4435]
[1723414805327,6.9754,143.36,143.31,24.4213]
[1723414805643,28.69,143.35,143.3,15.4464]
[1723414805844,17.4326,143.41,143.27,17.4487]
[1723414805845,28.69,143.33,143.27,17.4487]
[1723414806147,6.9774,143.32,143.27,17.4487]
[1723414806355,28.94098,143.33,143.25,29.5172]
[1723414806644,0.25098,143.32,143.25,29.5172]
[1723414806826,0.25098,143.32,143.26,6.9801]
[1723414807029,0.12549,143.36,143.26,18.42951684]
[1723414807226,0.12549,143.34,143.26,17.4507]
[1723414807425,6.9779,143.31,143.26,17.4507]
[1723414808152,6.9785,143.3,143.25,22.5365]
[1723414808327,28.69,143.31,143.22,17.4544]
[1723414808328,6.9788,143.29,143.22,24.4362]
[1723414808537,28.69,143.29,143.22,17.4544]
[1723414808841,35.6669,143.33,143.28,6.9793]
[1723414809043,0.37647,143.34,143.29,6.9788]
[1723414809252,35.6659,143.35,143.29,6.9788]
[1723414809427,6.9765,143.34,143.29,6.9788]
[1723414809627,6.9775,143.32,143.23,28.69]
[1723414809845,6.9779,143.31,143.25,17.4519]
[1723414810028,28.69,143.29,143.21,22.8761]
[1723414810235,6.9817,143.24,143.18,6.9841]
[1723414810426,28.69,143.23,143.17,15.0674]
[1723414810743,35.6722,143.23,143.17,15.0674]
[1723414810953,6.9822,143.22,143.17,15.0674]
[1723414811149,35.6718,143.23,143.17,22.0518]
[1723414811333,28.69,143.23,143.17,15.0674]
[1723414811654,6.9832,143.2,143.15,17.4641]
[1723414812352,28.69,143.21,143.1,6.988]
[1723414812353,28.69,143.17,143.1,6.988]
[1723414812554,28.69,143.15,143.08,30.0944]
[1723414812847,35.6751,143.17,143.11,6.9875]
[1723414813420,6.9853,143.16,143.11,6.9875]
[1723414814260,6.9853,143.16,143.1,6.9879]
[1723414814549,0.25098,143.19,143.11,18.62666725]
[1723414814550,6.9843,143.18,143.11,18.62666725]
[1723414814751,6.9843,143.18,143.12,6.9871]
[1723414815046,6.9837,143.19,143.13,1.15780544]
[1723414815242,28.69,143.21,143.11,46.1587]
[1723414815445,28.69,143.21,143.12,1.15738209]
[1723414815643,6.9842,143.18,143.12,8.14448209]
[1723414815822,6.9842,143.18,143.12,6.9871]
[1723414816252,6.9833,143.2,143.14,6.9857]
[1723414817060,28.69,143.21,143.13,1.15649259]
[1723414817350,6.9831,143.21,143.16,6.9851]
[1723414817924,12.44625706,143.22,143.14,15.5195]
[1723414818131,28.69,143.27,143.16,28.69]
[1723414818344,6.9806,143.26,143.2,6.9831]
[1723414818554,6.9806,143.26,143.17,0.12549]
[1723414818858,6.9806,143.26,143.2,6.9831]
[1723414819039,6.9806,143.26,143.21,0.48867467]
[1723414819231,6.9809,143.25,143.2,0.48895172]